[Event "FIDE WYCC Open U14 2023"]
[Site "Montesilvano"]
[Date "2023.11.24"]
[Round "11.32"]
[White "Yang, Sylvia Siyuan"]
[Black "Tregubenko, Nikolay"]
[Result "0-1"]
[ECO "E73"]
[WhiteElo "1973"]
[BlackElo "2138"]
[Annotator "NA RC"]
[PlyCount "90"]
[EventDate "2023.11.13"]
[EventType "swiss"]
[EventCountry "ITA"]
[SourceTitle "playchess.com"]
[Source "ChessBase"]
[SourceQuality "1"]
[TimeControl "40/5400+30:1800+30"]

1. d4 {[%emt 0:00:03]} Nf6 {[%emt 0:01:30]} 2. c4 {[%emt 0:00:42]} g6 {[%emt 0:00:05]} 3. Nc3 {[%emt 0:00:03]} Bg7 {[%emt 0:00:05]} 4. e4 {[%emt 0:00:03]} O-O {[%emt 0:00:06]} 5. Be2 {[%emt 0:00:02]} d6 {[%emt 0:00:08]} 6. Be3 {[%emt 0:00:01]} Nc6 {[%emt 0:00:15]} 7. g4 {[%emt 0:01:40]} e5 {[%emt 0:01:18]} 8. d5 {[%emt 0:01:10]} Nd4 {[%emt 0:00:39]} 9. f3 {[%emt 0:00:15]} Ne8 {[%emt 0:03:57]} 10. Qd2 {[%emt 0:05:06]} f5 {[%emt 0:01:29]} 11. O-O-O {[%emt 0:00:38]} f4 {[%emt 0:01:54]} 12. Bxd4 {[%emt 0:04:00]} exd4 {[%emt 0:00:04]} 13. Nb5 {[%emt 0:00:05]} c5 {[%emt 0:03:42]} 14. dxc6 {[%emt 0:02:52]} bxc6 {[%emt 0:06:09]} 15. Nxd4 {[%emt 0:00:06]} Qb6 {[%emt 0:00:44]} 16. Nb3 {[%emt 0:08:14]} Rb8 {[%emt 0:03:30]} 17. Nh3 {[%emt 0:12:45]} Be5 {[%emt 0:09:56]} 18. Rhf1 {[%emt 0:11:38]} a5 {[%emt 0:02:19]} 19. c5 {[%emt 0:05:59]} dxc5 {[%emt 0:00:17]} 20. Bc4+ {[%emt 0:00:01]} Kg7 {[%emt 0:02:58]} 21. Qxa5 {[%emt 0:00:40]} Nd6 {[%emt 0:12:56]} 22. Be2 {[%emt 0:05:01]} Qxa5 {[%emt 0:05:47]} 23. Nxa5 {[%emt 0:00:02]} Bxb2+ {[%emt 0:12:17]} 24. Kc2 {[%emt 0:00:21]} Bd4 {[%emt 0:01:17]} 25. Nb3 {[%emt 0:09:38]} Be5 {[%emt 0:00:09]} 26. Rb1 {[%emt 0:04:43]} Ra8 {[%emt 0:00:43]} 27. Nc1 {[%emt 0:01:20]} c4 {[%emt 0:01:14]} 28. Rb6 {[%emt 0:07:42]} Ra6 {[%emt 0:07:09]} 29. Rb4 {[%emt 0:07:21]} Be6 {[%emt 0:01:03]} 30. Rd1 {[%emt 0:01:24]} h6 {[%emt 0:02:02]} 31. Bf1 {[%emt 0:01:47]} Raa8 {[%emt 0:01:11]} 32. Rd2 {[%emt 0:02:07]} Nb5 {[%emt 0:02:21]} 33. a4 {[%emt 0:01:50]} Na3+ {[%emt 0:08:43]} 34. Kd1 {[%emt 0:00:02]} Rab8 {[%emt 0:01:02]} 35. Rxb8 Rxb8 {[%emt 0:00:01]} 36. Ra2 {[%emt 0:02:11]} Nb1 {[%emt 0:00:53]} 37. Rc2 {[%emt 0:00:02]} c3 {[%emt 0:00:42]} 38. Bd3 {[%emt 0:04:17]} Na3 {[%emt 0:00:06]} 39. Re2 {[%emt 0:00:29]} Nc4 {[%emt 0:01:33]} 40. Bxc4 {[%emt 0:00:00]} Bxc4 {[%emt 0:00:00]} 41. Rc2 {[%emt 0:00:42]} Rb1 {[%emt 0:00:45]} 42. Nf2 {[%emt 0:01:25]} Bb3 {[%emt 0:00:35]} 43. Nfd3 {[%emt 0:00:01]} Bd4 {[%emt 0:00:31]} 44. Nxf4 {[%emt 0:02:53]} Be3 {[%emt 0:01:23]} 45. Nfe2 {[%emt 0:00:06]} Bxa4 0-1

[Event "FIDE WYCC Open U14 2023"]
[Site "Montesilvano"]
[Date "2023.11.24"]
[Round "11.33"]
[White "Yessengali, Adizhan"]
[Black "Asikainen, Eeli"]
[Result "0-1"]
[ECO "A02"]
[WhiteElo "1725"]
[BlackElo "2081"]
[Annotator "NA RC"]
[PlyCount "82"]
[EventDate "2023.11.13"]
[EventType "swiss"]
[EventCountry "ITA"]
[SourceTitle "playchess.com"]
[Source "ChessBase"]
[SourceQuality "1"]
[TimeControl "40/5400+30:1800+30"]

1. f4 {[%emt 0:00:16]} e5 {[%emt 0:00:31]} 2. d3 {[%emt 0:00:10]} Nc6 {[%emt 0:05:43]} 3. Nf3 {[%emt 0:01:08]} exf4 {[%emt 0:04:24]} 4. Bxf4 {[%emt 0:03:13]} d5 {[%emt 0:00:14]} 5. g3 {[%emt 0:01:45]} Nf6 {[%emt 0:02:46]} 6. Bg2 {[%emt 0:01:33]} Bd6 {[%emt 0:01:47]} 7. Bxd6 {[%emt 0:01:03]} Qxd6 {[%emt 0:00:06]} 8. c3 {[%emt 0:03:08]} Bg4 {[%emt 0:04:59]} 9. Na3 {[%emt 0:03:20]} O-O-O {[%emt 0:08:33]} 10. Qa4 {[%emt 0:02:53]} Rhe8 {[%emt 0:10:41]} 11. O-O {[%emt 0:02:19]} Rxe2 {[%emt 0:08:11]} 12. b4 {[%emt 0:01:47]} Bxf3 {[%emt 0:24:20]} 13. Bxf3 {[%emt 0:00:10]} Re7 {[%emt 0:00:55]} 14. d4 {[%emt 0:00:55]} Re3 {[%emt 0:06:01]} 15. Bg2 {[%emt 0:02:17]} Kb8 {[%emt 0:01:18]} 16. Rab1 {[%emt 0:02:37]} Rde8 {[%emt 0:03:36]} 17. b5 {[%emt 0:01:06]} Nxd4 {[%emt 0:01:01]} 18. b6 {[%emt 0:01:54]} axb6 {[%emt 0:00:31]} 19. Kh1 {[%emt 0:04:17]} Nc6 {[%emt 0:02:19]} 20. Nb5 {[%emt 0:00:49]} Qc5 {[%emt 0:02:06]} 21. Qf4 {[%emt 0:05:01]} R8e7 {[%emt 0:01:38]} 22. Qg5 {[%emt 0:02:30]} Ne8 {[%emt 0:02:48]} 23. a4 {[%emt 0:02:52]} R3e5 {[%emt 0:00:24]} 24. Qg4 {[%emt 0:03:18]} h5 {[%emt 0:00:42]} 25. Qf4 {[%emt 0:02:42]} Nd6 {[%emt 0:00:45]} 26. c4 {[%emt 0:03:04]} Nxc4 {[%emt 0:01:05]} 27. Rbc1 {[%emt 0:02:59]} Qe3 {[%emt 0:00:26]} 28. Rfd1 {[%emt 0:01:24]} Qxf4 {[%emt 0:02:59]} 29. gxf4 {[%emt 0:00:05]} Rf5 {[%emt 0:01:11]} 30. Bh3 {[%emt 0:00:11]} Rxf4 {[%emt 0:00:38]} 31. Rxd5 {[%emt 0:00:06]} N4e5 {[%emt 0:00:43]} 32. Rcd1 {[%emt 0:00:41]} Re8 {[%emt 0:00:53]} 33. Re1 {[%emt 0:02:08]} f6 {[%emt 0:00:51]} 34. Rd7 {[%emt 0:00:58]} Re7 {[%emt 0:01:14]} 35. Rd5 {[%emt 0:04:05]} g5 {[%emt 0:00:21]} 36. Red1 {[%emt 0:02:03]} Re8 {[%emt 0:00:10]} 37. Be6 {[%emt 0:01:56]} Rxa4 {[%emt 0:00:35]} 38. Bf5 {[%emt 0:01:32]} Rc4 {[%emt 0:00:19]} 39. Bd7 {[%emt 0:02:09]} Rf8 {[%emt 0:00:15]} 40. Na3 {[%emt 0:00:00]} Rc5 {[%emt 0:00:00]} 41. R5d2 {[%emt 0:03:46]} Rd8 {[%emt 0:01:32]} 0-1

[Event "FIDE WYCC Open U14 2023"]
[Site "Montesilvano"]
[Date "2023.11.24"]
[Round "11.34"]
[White "Sommer, Justus"]
[Black "Radzimski, Antoni"]
[Result "1-0"]
[ECO "C43"]
[WhiteElo "2013"]
[BlackElo "1904"]
[Annotator "NA RC"]
[PlyCount "59"]
[EventDate "2023.11.13"]
[EventType "swiss"]
[EventCountry "ITA"]
[SourceTitle "playchess.com"]
[Source "ChessBase"]
[SourceQuality "1"]
[TimeControl "40/5400+30:1800+30"]

1. e4 {[%emt 0:00:06]} e5 {[%emt 0:00:21]} 2. Nf3 {[%emt 0:00:10]} Nf6 {[%emt 0:00:13]} 3. d4 {[%emt 0:00:15]} Nxe4 {[%emt 0:00:06]} 4. Bd3 {[%emt 0:00:10]} d5 {[%emt 0:00:04]} 5. dxe5 {[%emt 0:00:12]} Nc5 {[%emt 0:00:10]} 6. Be2 {[%emt 0:00:40]} Be7 {[%emt 0:00:04]} 7. O-O {[%emt 0:01:29]} O-O {[%emt 0:00:03]} 8. Nc3 {[%emt 0:02:50]} Be6 {[%emt 0:00:31]} 9. Be3 {[%emt 0:01:14]} Nc6 {[%emt 0:00:37]} 10. Qe1 {[%emt 0:04:59]} Nd7 {[%emt 0:06:57]} 11. Rd1 {[%emt 0:05:48]} Nb6 {[%emt 0:22:32]} 12. a3 {[%emt 0:04:25]} Qd7 {[%emt 0:13:10]} 13. Bxb6 {[%emt 0:07:35]} axb6 {[%emt 0:01:53]} 14. Nxd5 {[%emt 0:00:25]} Bxd5 {[%emt 0:01:20]} 15. c4 {[%emt 0:09:04]} Ra5 {[%emt 0:02:57]} 16. b4 {[%emt 0:19:06]} Rxa3 {[%emt 0:02:56]} 17. cxd5 {[%emt 0:03:25]} Na7 {[%emt 0:05:38]} 18. Bd3 {[%emt 0:06:28]} Qg4 {[%emt 0:06:48]} 19. Nd4 {[%emt 0:04:04]} Kh8 {[%emt 0:03:18]} 20. Bf5 {[%emt 0:01:31]} Qh5 {[%emt 0:02:35]} 21. f4 {[%emt 0:03:06]} c5 {[%emt 0:03:42]} 22. Nc2 {[%emt 0:07:22]} Ra2 {[%emt 0:02:51]} 23. Bd3 {[%emt 0:03:36]} cxb4 {[%emt 0:03:58]} 24. d6 {[%emt 0:01:26]} Bh4 {[%emt 0:00:55]} 25. Qxb4 {[%emt 0:00:48]} Bd8 {[%emt 0:03:26]} 26. Rf3 {[%emt 0:01:50]} b5 {[%emt 0:01:28]} 27. Qb3 {[%emt 0:02:32]} Ra4 {[%emt 0:00:27]} 28. Rdf1 {[%emt 0:00:20]} h6 {[%emt 0:04:32]} 29. Bxb5 {[%emt 0:00:39]} Nxb5 {[%emt 0:00:17]} 30. Qxa4 {[%emt 0:00:45]} 1-0

[Event "FIDE WYCC Open U14 2023"]
[Site "Montesilvano"]
[Date "2023.11.24"]
[Round "11.35"]
[White "Georgiadis, Anastasios"]
[Black "Kao, Jamison Edrich"]
[Result "1-0"]
[ECO "E71"]
[WhiteElo "2001"]
[BlackElo "1701"]
[Annotator "NA RC"]
[PlyCount "99"]
[EventDate "2023.11.13"]
[EventType "swiss"]
[EventCountry "ITA"]
[SourceTitle "playchess.com"]
[Source "ChessBase"]
[SourceQuality "1"]
[TimeControl "40/5400+30:1800+30"]

1. d4 {[%emt 0:00:02]} Nf6 {[%emt 0:00:04]} 2. c4 {[%emt 0:00:06]} g6 {[%emt 0:00:07]} 3. Nc3 {[%emt 0:00:05]} Bg7 {[%emt 0:00:03]} 4. e4 {[%emt 0:00:08]} d6 {[%emt 0:00:04]} 5. h3 {[%emt 0:00:11]} O-O {[%emt 0:00:05]} 6. Be3 {[%emt 0:00:05]} c5 {[%emt 0:00:03]} 7. Nf3 {[%emt 0:00:42]} cxd4 {[%emt 0:00:04]} 8. Nxd4 {[%emt 0:00:09]} Nc6 {[%emt 0:00:05]} 9. Be2 {[%emt 0:02:55]} Nxd4 {[%emt 0:00:15]} 10. Bxd4 {[%emt 0:00:17]} Bd7 {[%emt 0:00:04]} 11. O-O {[%emt 0:09:14]} Bc6 {[%emt 0:00:19]} 12. Qc2 {[%emt 0:02:23]} a5 {[%emt 0:00:25]} 13. Rad1 {[%emt 0:01:33]} Nd7 {[%emt 0:02:55]} 14. Bxg7 {[%emt 0:03:34]} Kxg7 {[%emt 0:00:02]} 15. Bg4 {[%emt 0:01:21]} Ne5 {[%emt 0:16:21]} 16. c5 {[%emt 0:01:39]} Nxg4 {[%emt 0:14:33]} 17. hxg4 {[%emt 0:00:05]} Qc8 {[%emt 0:00:12]} 18. cxd6 {[%emt 0:06:01]} Qxg4 {[%emt 0:01:08]} 19. dxe7 {[%emt 0:11:49]} Rfe8 {[%emt 0:00:03]} 20. Nd5 {[%emt 0:00:21]} Bxd5 {[%emt 0:00:03]} 21. exd5 {[%emt 0:00:32]} Rxe7 {[%emt 0:00:05]} 22. Qc3+ {[%emt 0:00:09]} Kg8 {[%emt 0:08:26]} 23. d6 {[%emt 0:00:10]} Rd7 {[%emt 0:00:23]} 24. Rfe1 {[%emt 0:09:47]} Qh4 {[%emt 0:21:13]} 25. Rd3 {[%emt 0:04:16]} Qd8 {[%emt 0:07:04]} 26. Qd4 {[%emt 0:04:49]} Qf8 {[%emt 0:00:12]} 27. Qf4 {[%emt 0:08:10]} Rad8 {[%emt 0:03:16]} 28. Red1 {[%emt 0:00:13]} f6 {[%emt 0:01:38]} 29. b3 {[%emt 0:00:59]} Kg7 {[%emt 0:03:14]} 30. Rd5 {[%emt 0:01:13]} Ra8 {[%emt 0:05:33]} 31. Qa4 {[%emt 0:01:11]} Qd8 {[%emt 0:00:20]} 32. Qe4 {[%emt 0:07:06]} Kf7 {[%emt 0:02:13]} 33. Rb5 {[%emt 0:02:14]} Qe8 {[%emt 0:07:56]} 34. Qf3 {[%emt 0:07:37]} Ra7 {[%emt 0:02:05]} 35. Qc3 {[%emt 0:01:19]} Qd8 {[%emt 0:01:26]} 36. Qc5 {[%emt 0:01:07]} Qb8 {[%emt 0:01:57]} 37. Qd5+ {[%emt 0:06:10]} Kg7 {[%emt 0:00:18]} 38. Rb6 {[%emt 0:00:55]} Qd8 {[%emt 0:02:54]} 39. Qc5 {[%emt 0:00:43]} Ra8 {[%emt 0:00:27]} 40. Rc1 {[%emt 0:00:00]} Kf8 {[%emt 0:00:00]} 41. Qd4 {[%emt 0:03:02]} Kg7 {[%emt 0:04:08]} 42. Qc5 {[%emt 0:03:28]} Kf8 {[%emt 0:00:56]} 43. a4 {[%emt 0:04:34]} Rb8 {[%emt 0:06:30]} 44. b4 {[%emt 0:05:45]} axb4 {[%emt 0:00:36]} 45. Qxb4 {[%emt 0:00:03]} h5 {[%emt 0:12:48]} 46. a5 {[%emt 0:02:04]} Rc8 {[%emt 0:01:04]} 47. Rc7 {[%emt 0:00:38]} Rdxc7 {[%emt 0:03:04]} 48. dxc7+ {[%emt 0:00:06]} Qe7 {[%emt 0:00:01]} 49. Rxf6+ {[%emt 0:00:14]} Ke8 {[%emt 0:00:20]} 50. Qb5+ {[%emt 0:00:05]} 1-0